fUST/lending_fUST_20240612
["ID","MTS","AMOUNT","RATE_DAILY","PERIOD"]
[329212016,1718181048430,-1137.7,0.00018854,2]
[329212017,1718181048440,-342.820007,0.00018867,2]
[329212018,1718181048451,-1970.993942,0.00018867,2]
[329212019,1718181048463,-1371.280024,0.00018867,2]
[329212020,1718181048473,-600.0,0.00018868,2]
[329212021,1718181048483,-500.0,0.00018903,2]
[329212022,1718181048494,-500.0,0.00018903,2]
[329212023,1718181048504,-287.74112168,0.00018903,2]
[329212024,1718181048516,-1202.97,0.00018903,2]
[329212025,1718181048527,-1083.95,0.00018903,2]
[329212026,1718181048539,-500.0,0.00018903,2]
[329212027,1718181048552,-558.86,0.00018903,2]
[329212028,1718181048563,-500.0,0.00018903,2]
[329212029,1718181048573,-1259.97,0.00018903,2]
[329212030,1718181048585,-747.86,0.00018903,2]
[329212031,1718181048596,-6647.25,0.00018903,2]
[329212032,1718181048608,-500.0,0.00018904,2]
[329212033,1718181048619,-500.0,0.00018904,2]
[329212034,1718181048633,-14407.81,0.00018904,2]
[329212035,1718181048644,-11983.89,0.00018904,2]
[329212036,1718181048655,-730.92,0.00018904,2]
[329212037,1718181048666,-394.20283113,0.00019,2]
[329212038,1718181048677,-7270.73643792,0.00019,2]
[329212039,1718181048688,-163.14541634,0.00019,2]
[329212040,1718181048701,-8128.8990443,0.00019,2]
[329212041,1718181048716,-1137.7,0.00019012,2]
[329212042,1718181048726,-13112.32820021,0.00019026,2]
[329212043,1718181048737,-13272.26070821,0.00019031,2]
[329212044,1718181048748,-13722.70754922,0.00019031,2]
[329212045,1718181048758,-3882.31577843,0.00019033,2]
[329212046,1718181048897,-6082.83335136,0.00019033,2]
[329212047,1718181048924,-825.46757297,0.00019033,2]
[329212048,1718181049654,-3202.0,0.00017534,2]
[329212049,1718181049666,-3202.0,0.00017808,2]
[329212050,1718181049683,-3202.0,0.00018082,2]
[329212051,1718181049693,-3202.0,0.00018356,2]
[329212052,1718181049704,-3202.0,0.0001863,2]
[329212053,1718181049715,-292.5693121,0.00018795,2]
[329212054,1718181049726,-3202.0,0.00018904,2]
[329212055,1718181049739,-1573.45459441,0.00019033,2]
[329212056,1718181049752,-13272.26070821,0.00019039,2]
[329212057,1718181049763,-12364.07129717,0.00019047,2]
[329212058,1718181049775,-358.11167628,0.00019048,2]
[329212059,1718181049786,-9595.15144748,0.00019048,2]
[329212060,1718181180868,151.01510151,0.00019492,30]
[329212061,1718181180934,151.01510151,0.00019102,120]
[329212067,1718181429398,482.04714456,9.999e-05,2]
[329212069,1718181441775,83484.86852152,0.00025,60]
[329212070,1718181480564,262.16993722,9.999e-05,2]
[329212071,1718181540972,151.01359122,0.00019619,30]
[329212072,1718181541023,151.01359122,0.00019227,120]
[329212086,1718181712717,631.05617754,9.999e-05,2]
[329212087,1718181803238,151.01359122,0.00019755,30]
[329212088,1718181803284,151.01359122,0.0001936,120]
[329212090,1718181910056,262.16993722,9.999e-05,2]
[329212091,1718181918844,182.959228,0.00025753,120]
[329212104,1718182041874,151.01208097,0.00019633,30]
[329212105,1718182042018,151.01208097,0.00019241,120]
[329212133,1718182233985,-2037.59250395,0.00014264,2]
[329212135,1718182233996,-2475.34668873,0.00014265,2]
[329212136,1718182234007,-996.37124481,0.00014268,2]
[329212137,1718182234021,-869.77530239,0.00014268,2]
[329212138,1718182234033,-256.9474619,0.0001438,2]
[329212139,1718182234043,-250.0,0.00014383,2]
[329212140,1718182234055,-190.26891304,0.00015305,2]
[329212141,1718182234067,-300.0,0.00015408,2]
[329212142,1718182234078,-300.0,0.00015408,2]
[329212143,1718182234089,-2683.16682461,0.00015409,2]
[329212144,1718182234100,-474.73181278,0.00015409,2]
[329212145,1718182234111,-166.25631759,0.0001541,2]
[329212146,1718182234122,-24900.0,0.00015411,2]
[329212147,1718182234133,-1765.81731642,0.00016336,2]
[329212148,1718182234144,-419.21318354,0.00016436,2]
[329212149,1718182234156,-7694.94718932,0.00016436,2]
[329212150,1718182234166,-42119.04264083,0.00016436,2]
[329212151,1718182234177,-7921.82449081,0.00016437,2]
[329212152,1718182234188,-500.0,0.00016438,2]
[329212153,1718182234198,-500.0,0.00016438,2]
[329212154,1718182234210,-500.0,0.00016438,2]
[329212155,1718182234220,-500.0,0.00016438,4]
[329212156,1718182234231,-630.79079905,0.00016438,2]
[329212158,1718182234242,-600.58,0.00016438,2]
[329212160,1718182234254,-250.0,0.00016438,2]
[329212162,1718182234265,-500.0,0.00016438,2]
[329212164,1718182234276,-500.0,0.00016438,2]
[329212166,1718182234287,-500.0,0.00016438,2]
[329212168,1718182234298,-500.0,0.00016438,2]
[329212170,1718182234309,-316.42574093,0.00016438,2]
[329212171,1718182234319,-500.0,0.00016438,2]
[329212172,1718182234330,-500.0,0.00016438,2]
[329212173,1718182234340,-500.0,0.00016438,2]
[329212174,1718182234351,-501.98,0.00016438,2]
[329212175,1718182234362,-500.0,0.00016438,2]
[329212176,1718182234372,-500.0,0.00016438,2]
[329212177,1718182234383,-449.0730593,0.00016438,2]
[329212178,1718182234395,-500.0,0.00016438,2]
[329212179,1718182234405,-500.0,0.00016438,2]
[329212180,1718182234416,-500.0,0.00016438,2]
[329212181,1718182234427,-500.0,0.00016438,2]
[329212182,1718182234437,-500.0,0.00016438,2]
[329212183,1718182234448,-500.0,0.00016438,2]
[329212184,1718182234458,-500.0,0.00016438,2]
[329212185,1718182234469,-500.0,0.00016438,2]
[329212186,1718182234479,-500.0,0.00016438,2]
[329212187,1718182234490,-14874.39,0.00016438,2]
[329212188,1718182234500,-206.84965784,0.00016438,2]
[329212189,1718182234514,-314.80375079,0.00016438,2]
[329212190,1718182234524,-90.80448558,0.00016438,2]
[329212191,1718182234537,-499.8,0.00016438,2]
[329212201,1718182239784,-181.27551442,0.00016438,2]
[329212202,1718182239796,-181.01723756,0.00016438,2]
[329212203,1718182239807,-500.0,0.00016438,2]
[329212204,1718182239817,-2601.19,0.00016438,2]
[329212205,1718182239828,-500.0,0.00016438,2]
[329212206,1718182239839,-500.0,0.00016438,2]
[329212207,1718182239849,-500.0,0.00016438,2]
[329212208,1718182239859,-500.0,0.00016438,2]
[329212209,1718182239869,-500.0,0.00016438,2]
[329212210,1718182239879,-500.0,0.00016438,2]
[329212211,1718182239889,-500.0,0.00016438,2]
[329212212,1718182239900,-500.0,0.00016438,2]
[329212213,1718182239910,-1409.49,0.00016438,2]
[329212214,1718182239920,-500.0,0.00016438,2]
[329212215,1718182239931,-500.0,0.00016438,2]
[329212216,1718182239942,-500.0,0.00016438,2]
[329212217,1718182239952,-678.93,0.00016438,2]
[329212218,1718182239962,-678.93,0.00016438,2]
[329212219,1718182239972,-500.0,0.00016438,2]
[329212220,1718182239983,-500.0,0.00016438,2]
[329212221,1718182239992,-500.0,0.00016438,2]
[329212222,1718182240002,-500.0,0.00016438,2]
[329212223,1718182240013,-500.0,0.00016438,2]
[329212224,1718182240023,-1173.9,0.00016438,2]
[329212225,1718182240033,-577.79,0.00016438,2]
[329212226,1718182240044,-552.02,0.00016438,2]
[329212227,1718182240054,-500.0,0.00016438,2]
[329212228,1718182240064,-500.0,0.00016438,2]
[329212229,1718182240074,-500.0,0.00016438,2]
[329212230,1718182240085,-505.87696066,0.00016438,2]
[329212231,1718182240096,-216.4060918,0.00016438,2]
[329212232,1718182240106,-500.0,0.00016438,2]
[329212233,1718182240117,-500.0,0.00016438,2]
[329212234,1718182240127,-500.0,0.00016438,2]
[329212235,1718182240138,-500.0,0.00016438,2]
[329212236,1718182240148,-12371.5,0.00016438,2]
[329212237,1718182240160,-500.0,0.00016438,2]
[329212238,1718182240171,-1186.97,0.00016438,2]
[329212239,1718182240182,-500.0,0.00016438,2]
[329212240,1718182240193,-500.0,0.00016438,2]
[329212241,1718182240204,-500.0,0.00016438,2]
[329212242,1718182240215,-867.56,0.00016438,2]
[329212243,1718182240226,-500.0,0.00016438,2]
[329212244,1718182240237,-494.78784879,0.00016438,2]
[329212245,1718182240248,-500.0,0.00016438,2]
[329212246,1718182240259,-500.0,0.00016438,2]
[329212247,1718182240270,-275.71709057,0.000165,2]
[329212248,1718182240280,-876.26421106,0.00016611,2]
[329212249,1718182240291,-678.93,0.00016611,2]
[329212250,1718182240302,-2710.92,0.00016711,2]
[329212251,1718182240312,-500.0,0.00016711,2]
[329212252,1718182240324,-678.93,0.00016711,2]
[329212253,1718182240335,-6465.85,0.00016711,2]
[329212254,1718182240346,-500.0,0.00016711,2]
[329212255,1718182240357,-500.0,0.00016712,2]
[329212256,1718182240367,-500.0,0.00016712,2]
[329212257,1718182240379,-500.0,0.00016712,4]
[329212258,1718182240389,-600.58,0.00016712,2]
[329212259,1718182240400,-250.0,0.00016712,2]
[329212260,1718182240410,-500.0,0.00016712,2]
[329212261,1718182240420,-500.0,0.00016712,2]
[329212262,1718182240431,-500.0,0.00016712,2]
[329212263,1718182240442,-500.0,0.00016712,2]
[329212264,1718182240454,-501.98,0.00016712,2]
[329212265,1718182240465,-500.0,0.00016712,2]
[329212266,1718182240476,-500.0,0.00016712,2]
[329212267,1718182240487,-366.02163504,0.00016712,2]
[329212268,1718182240500,-500.0,0.00016712,2]
[329212269,1718182240512,-500.0,0.00016712,2]
[329212270,1718182240524,-14874.39,0.00016712,2]
[329212271,1718182240536,-771.88,0.00016712,2]
[329212272,1718182240547,-500.0,0.00016712,2]
[329212273,1718182240558,-2601.19,0.00016712,2]
[329212274,1718182240570,-512.43162702,0.00016712,2]
[329212275,1718182240581,-209.58979908,0.00016712,2]
[329212276,1718182240593,-500.0,0.00016712,2]
[329212277,1718182240604,-1409.49,0.00016712,2]
[329212278,1718182240615,-500.0,0.00016712,2]
[329212279,1718182240626,-395.55217758,0.00016712,2]
[329212280,1718182240638,-500.0,0.00016712,2]
[329212281,1718182240650,-500.0,0.00016712,2]
[329212282,1718182240661,-1173.9,0.00016712,2]
[329212283,1718182240675,-577.79,0.00016712,2]
[329212284,1718182240687,-552.02,0.00016712,2]
[329212285,1718182240698,-500.0,0.00016712,2]
[329212286,1718182240709,-500.0,0.00016712,2]
[329212287,1718182240721,-500.0,0.00016712,2]
[329212288,1718182240733,-500.0,0.00016712,2]
[329212289,1718182240744,-500.0,0.00016712,2]
[329212290,1718182240769,-12371.5,0.00016712,2]
[329212291,1718182240789,-1186.97,0.00016712,2]
[329212292,1718182240801,-500.0,0.00016712,2]
[329212293,1718182240812,-160.34758777,0.00016712,2]
[329212294,1718182240824,-500.0,0.00016712,2]
[329212295,1718182240836,-867.56,0.00016712,2]
[329212296,1718182240847,-500.0,0.00016712,2]
[329212297,1718182240857,-500.0,0.00016712,2]
[329212298,1718182240869,-2000.0,0.00016886,2]
[329212299,1718182240879,-2710.92,0.00016985,2]
[329212300,1718182240889,-574.13892282,0.00016985,2]
[329212301,1718182240901,-678.93,0.00016985,2]
[329212302,1718182240911,-6465.85,0.00016985,2]
[329212303,1718182240921,-500.0,0.00016985,2]
[329212304,1718182240932,-500.0,0.00016986,2]
[329212305,1718182240941,-500.0,0.00016986,4]
[329212306,1718182240952,-600.58,0.00016986,2]
[329212307,1718182240962,-250.0,0.00016986,2]
[329212308,1718182240973,-500.0,0.00016986,2]
[329212309,1718182240983,-500.0,0.00016986,2]
[329212310,1718182240995,-501.98,0.00016986,2]
[329212311,1718182241005,-277.27400704,0.00016986,2]
[329212312,1718182241016,-500.0,0.00016986,2]
[329212313,1718182241027,-500.0,0.00016986,2]
[329212314,1718182241038,-14874.39,0.00016986,2]
[329212315,1718182241049,-771.88,0.00016986,2]
[329212316,1718182241059,-2601.19,0.00016986,2]
[329212317,1718182241069,-1409.49,0.00016986,2]
[329212318,1718182241080,-500.0,0.00016986,2]
[329212319,1718182241090,-500.0,0.00016986,2]
[329212320,1718182241101,-500.0,0.00016986,2]
[329212321,1718182241111,-1173.9,0.00016986,2]
[329212322,1718182241122,-577.79,0.00016986,2]
[329212323,1718182241133,-552.02,0.00016986,2]
[329212324,1718182241143,-500.0,0.00016986,2]
[329212325,1718182241153,-500.0,0.00016986,2]
[329212326,1718182241164,-500.0,0.00016986,2]
[329212327,1718182241175,-500.0,0.00016986,2]
[329212328,1718182241185,-12371.5,0.00016986,2]
[329212329,1718182241196,-1186.97,0.00016986,2]
[329212330,1718182241206,-867.56,0.00016986,2]
[329212331,1718182241216,-500.0,0.00016986,2]
[329212332,1718182241225,-500.0,0.00016986,2]
[329212333,1718182241235,-999.0,0.00017,2]
[329212334,1718182241245,-876.26421104,0.00017183,2]
[329212335,1718182241255,-678.93,0.00017258,2]
[329212336,1718182241266,-2710.92,0.00017259,2]
[329212337,1718182241276,-6465.85,0.00017259,2]
[329212338,1718182241285,-500.0,0.00017259,2]
[329212339,1718182241295,-500.0,0.0001726,2]
[329212340,1718182241305,-500.0,0.0001726,4]
[329212341,1718182241315,-600.58,0.0001726,2]
[329212342,1718182241324,-250.0,0.0001726,2]
[329212343,1718182241334,-500.0,0.0001726,2]
[329212344,1718182241344,-500.0,0.0001726,2]
[329212345,1718182241354,-501.98,0.0001726,2]
[329212346,1718182241365,-500.0,0.0001726,2]
[329212347,1718182241375,-500.0,0.0001726,2]
[329212348,1718182241386,-14874.39,0.0001726,2]
[329212349,1718182241396,-771.88,0.0001726,2]
[329212350,1718182241406,-2601.19,0.0001726,2]
[329212351,1718182241416,-1409.49,0.0001726,2]
[329212352,1718182241427,-500.0,0.0001726,2]
[329212353,1718182241437,-500.0,0.0001726,2]
[329212354,1718182241448,-1173.9,0.0001726,2]
[329212355,1718182241458,-577.79,0.0001726,2]
[329212356,1718182241469,-552.02,0.0001726,2]
[329212357,1718182241479,-500.0,0.0001726,2]
[329212358,1718182241490,-500.0,0.0001726,2]
[329212359,1718182241500,-500.0,0.0001726,2]
[329212361,1718182241511,-12371.5,0.0001726,2]
[329212362,1718182241522,-1186.97,0.0001726,2]
[329212363,1718182241532,-867.56,0.0001726,2]
[329212364,1718182241543,-500.0,0.0001726,2]
[329212365,1718182241553,-500.0,0.0001726,2]
[329212366,1718182241564,-678.93,0.00017532,2]
[329212367,1718182241575,-2710.92,0.00017533,2]
[329212368,1718182241585,-6465.85,0.00017533,2]
[329212369,1718182241596,-529.1,0.00017533,2]
[329212370,1718182241606,-516.88891639,0.00017534,2]
[329212372,1718182241617,-500.0,0.00017534,4]
[329212373,1718182241627,-600.58,0.00017534,2]
[329212374,1718182241638,-250.0,0.00017534,2]
[329212375,1718182241649,-500.0,0.00017534,2]
[329212376,1718182241660,-500.0,0.00017534,2]
[329212377,1718182241671,-501.98,0.00017534,2]
[329212378,1718182241681,-500.0,0.00017534,2]
[329212379,1718182241694,-500.0,0.00017534,2]
[329212380,1718182241705,-14874.39,0.00017534,2]
[329212381,1718182241717,-771.88,0.00017534,2]
[329212383,1718182241727,-2601.19,0.00017534,2]
[329212384,1718182241739,-1409.49,0.00017534,2]
[329212385,1718182241750,-500.0,0.00017534,2]
[329212386,1718182241781,-1173.9,0.00017534,2]
[329212387,1718182241791,-577.79,0.00017534,2]
[329212389,1718182241802,-552.02,0.00017534,2]
[329212390,1718182241813,-500.0,0.00017534,2]
[329212391,1718182241824,-500.0,0.00017534,2]
[329212392,1718182241835,-12371.5,0.00017534,2]
[329212393,1718182241845,-1186.97,0.00017534,2]
[329212394,1718182241856,-867.56,0.00017534,2]
[329212395,1718182241867,-500.0,0.00017534,2]
[329212396,1718182241879,-500.0,0.00017534,2]
[329212397,1718182241890,-1975.42229871,0.000176,2]
[329212398,1718182241902,-285.48237256,0.00017698,2]
[329212399,1718182241913,-876.26421104,0.00017756,2]
[329212400,1718182241923,-678.93,0.00017797,2]
[329212401,1718182241933,-678.93,0.00017797,2]
[329212402,1718182241944,-678.93,0.00017797,2]
[329212403,1718182241954,-2710.92,0.00017807,2]
[329212404,1718182241965,-678.93,0.00017807,2]
[329212405,1718182241976,-6465.85,0.00017807,2]
[329212406,1718182241986,-500.0,0.00017808,4]
[329212407,1718182241996,-600.58,0.00017808,2]
[329212408,1718182242007,-250.0,0.00017808,2]
[329212409,1718182242018,-580.86070805,0.00017808,2]
[329212410,1718182242029,-500.0,0.00017808,2]
[329212411,1718182242039,-501.98,0.00017808,2]
[329212412,1718182242049,-500.0,0.00017808,2]
[329212413,1718182242060,-500.0,0.00017808,2]
[329212414,1718182242070,-14874.39,0.00017808,2]
[329212415,1718182242081,-771.88,0.00017808,2]
[329212416,1718182242091,-2601.19,0.00017808,2]
[329212417,1718182242101,-1409.49,0.00017808,2]
[329212418,1718182242111,-500.0,0.00017808,2]
[329212419,1718182242122,-1173.9,0.00017808,2]
[329212420,1718182242132,-577.79,0.00017808,2]
[329212421,1718182242143,-552.02,0.00017808,2]
[329212422,1718182242153,-500.0,0.00017808,2]
[329212423,1718182242164,-500.0,0.00017808,2]
[329212424,1718182242174,-12371.5,0.00017808,2]
[329212425,1718182242185,-1186.97,0.00017808,2]
[329212426,1718182242195,-867.56,0.00017808,2]
[329212427,1718182242206,-500.0,0.00017808,2]
[329212428,1718182242217,-500.0,0.00017808,2]
[329212430,1718182242228,-10491.92816074,0.00017898,2]
[329212431,1718182242238,-295.0485943,0.00017973,2]
[329212432,1718182242250,-292.5693121,0.00017973,2]
[329212433,1718182242260,-306.0,0.00017973,2]
[329212434,1718182242271,-296.0140192,0.00017973,2]
[329212435,1718182242282,-292.5693121,0.00017973,2]
[329212436,1718182242292,-292.5693121,0.00017973,2]
[329212437,1718182242303,-7116.13519318,0.00017979,2]
[329212438,1718182242316,-1355.61945113,0.00018,2]
[329212439,1718182242327,-2765.44251206,0.00018,2]
[329212440,1718182242338,-155.01550155,0.00018,2]
[329212442,1718182242349,-876.82850055,0.00018,2]
[329212444,1718182242361,-632.99963654,0.00018,2]
[329212445,1718182242372,-155.02790502,0.00018,2]
[329212446,1718182242383,-1036.68456979,0.00018,2]
[329212447,1718182242394,-204.17791001,0.00018,2]
[329212448,1718182242407,-1765.81731642,0.00018065,2]
[329212449,1718182242418,-678.93,0.0001808,2]
[329212450,1718182242428,-2710.92,0.00018081,2]
[329212451,1718182242438,-678.93,0.00018081,2]
[329212452,1718182242449,-6465.85,0.00018081,2]
[329212453,1718182242460,-3000.0,0.00018082,2]
[329212454,1718182242473,-677.7192,0.00018082,2]
[329212455,1718182242483,-500.0,0.00018082,4]
[329212456,1718182242494,-600.58,0.00018082,2]
[329212457,1718182242503,-250.0,0.00018082,2]
[329212458,1718182242514,-500.0,0.00018082,2]
[329212459,1718182242524,-501.98,0.00018082,2]
[329212460,1718182242535,-550.65313336,0.00018082,2]
[329212461,1718182242546,-500.0,0.00018082,2]
[329212462,1718182242557,-14874.39,0.00018082,2]
[329212463,1718182242568,-771.88,0.00018082,2]
[329212464,1718182242579,-2601.19,0.00018082,2]
[329212465,1718182242589,-1409.49,0.00018082,2]
[329212466,1718182242599,-1173.9,0.00018082,2]
[329212467,1718182242610,-577.79,0.00018082,2]
[329212468,1718182242620,-552.02,0.00018082,2]
[329212469,1718182242630,-500.0,0.00018082,2]
[329212470,1718182242641,-500.0,0.00018082,2]
[329212471,1718182242651,-12371.5,0.00018082,2]
[329212472,1718182242661,-1186.97,0.00018082,2]
[329212473,1718182242672,-867.56,0.00018082,2]
[329212474,1718182242812,-500.0,0.00018082,2]
[329212475,1718182242828,-150.4455963,0.00018082,2]
[329212476,1718182242838,-876.26421104,0.00018328,2]
[329212477,1718182242849,-2710.92,0.00018355,2]
[329212478,1718182242860,-678.93,0.00018355,2]
[329212479,1718182242870,-6465.85,0.00018355,2]
[329212480,1718182242881,-624.23075549,0.00018356,4]
[329212481,1718182242892,-600.58,0.00018356,2]
[329212482,1718182242903,-250.0,0.00018356,2]
[329212483,1718182242914,-500.0,0.00018356,2]
[329212484,1718182242925,-501.98,0.00018356,2]
[329212485,1718182242936,-576.105549,0.00018356,2]
[329212486,1718182242948,-14874.39,0.00018356,2]
[329212487,1718182242962,-771.88,0.00018356,2]
[329212488,1718182242973,-2601.19,0.00018356,2]
[329212489,1718182242984,-1409.49,0.00018356,2]
[329212490,1718182242995,-1173.9,0.00018356,2]
[329212491,1718182243007,-577.79,0.00018356,2]
[329212492,1718182243017,-552.02,0.00018356,2]
[329212493,1718182243028,-500.0,0.00018356,2]
[329212494,1718182243038,-500.0,0.00018356,2]
[329212495,1718182243049,-12371.5,0.00018356,2]
[329212496,1718182243060,-1186.97,0.00018356,2]
[329212497,1718182243072,-867.56,0.00018356,2]
[329212498,1718182243082,-500.0,0.00018356,2]
[329212499,1718182243094,-155.0,0.0001838,2]
[329212500,1718182243104,-606.91207968,0.000185,2]
[329212501,1718182243117,-1150.3,0.00018513,2]
[329212502,1718182243128,-159.0,0.00018513,2]
[329212503,1718182243139,-504.828,0.0001856,2]
[329212504,1718182243150,-166.666666,0.00018575,2]
[329212505,1718182243161,-2710.92,0.00018629,2]
[329212506,1718182243172,-678.93,0.00018629,2]
[329212507,1718182243183,-6465.85,0.00018629,2]
[329212508,1718182243193,-600.58,0.0001863,2]
[329212509,1718182243204,-250.0,0.0001863,2]
[329212510,1718182243216,-500.0,0.0001863,2]
[329212511,1718182243227,-501.98,0.0001863,2]
[329212512,1718182243238,-14874.39,0.0001863,2]
[329212513,1718182243249,-771.88,0.0001863,2]
[329212514,1718182243260,-2601.19,0.0001863,2]
[329212515,1718182243270,-1409.49,0.0001863,2]
[329212516,1718182243281,-1173.9,0.0001863,2]
[329212517,1718182243292,-577.79,0.0001863,2]
[329212518,1718182243303,-552.02,0.0001863,2]
[329212519,1718182243313,-500.0,0.0001863,2]
[329212520,1718182243324,-500.0,0.0001863,2]
[329212521,1718182243334,-12371.5,0.0001863,2]
[329212522,1718182243345,-1186.97,0.0001863,2]
[329212523,1718182243356,-867.56,0.0001863,2]
[329212524,1718182243366,-500.0,0.0001863,2]
[329212525,1718182243377,-250.0,0.0001863,2]
[329212526,1718182243388,-788.397576,0.00018634,2]
[329212527,1718182243399,-685.640013,0.00018634,2]
[329212528,1718182243410,-1150.3,0.00018673,2]
[329212529,1718182243421,-159.0,0.00018673,2]
[329212530,1718182243432,-600.0,0.00018674,2]
[329212531,1718182243444,-306.0,0.00018754,2]
[329212532,1718182243455,-292.5693121,0.00018754,2]
[329212533,1718182243467,-5281.92082876,0.00018774,2]
[329212534,1718182243478,-153.0,0.00018795,2]
[329212535,1718182243489,-315.9680031,0.00018795,2]
[329212536,1718182243499,-1150.3,0.00018833,2]
[329212537,1718182243510,-159.0,0.00018833,2]
[329212538,1718182243521,-162.54564181,0.00018857,3]
[329212539,1718182243532,-788.397576,0.00018867,2]
[329212540,1718182243543,-685.640013,0.00018867,2]
[329212541,1718182243554,-600.0,0.00018868,2]
[329212542,1718182243565,-876.26421104,0.000189,2]
[329212543,1718182243576,-678.93,0.00018902,2]
[329212544,1718182243587,-2710.92,0.00018903,2]
[329212545,1718182243597,-6465.85,0.00018903,2]
[329212546,1718182243609,-600.58,0.00018904,2]
[329212548,1718182243619,-287.74112168,0.00018904,2]
[329212550,1718182243630,-500.0,0.00018904,2]
[329212551,1718182243641,-501.98,0.00018904,2]
[329212552,1718182243653,-14874.39,0.00018904,2]
[329212553,1718182243664,-771.88,0.00018904,2]
[329212554,1718182243674,-2601.19,0.00018904,2]
[329212555,1718182243686,-1409.49,0.00018904,2]
[329212556,1718182243701,-1173.9,0.00018904,2]
[329212557,1718182243712,-577.79,0.00018904,2]
[329212558,1718182243723,-552.02,0.00018904,2]
[329212559,1718182243735,-500.0,0.00018904,2]
[329212560,1718182243745,-500.0,0.00018904,2]
[329212561,1718182243756,-12371.5,0.00018904,2]
[329212562,1718182243781,-1186.97,0.00018904,2]
[329212563,1718182243795,-867.56,0.00018904,2]
[329212565,1718182243806,-500.0,0.00018904,2]
[329212566,1718182243817,-156.46786083,0.00018992,2]
[329212567,1718182243827,-489.4554539,0.00018992,2]
[329212568,1718182243838,-678.93,0.00018993,2]
[329212569,1718182243850,-678.93,0.00018993,2]
[329212570,1718182243861,-678.93,0.00018993,2]
[329212571,1718182243871,-678.93,0.00018993,2]
[329212572,1718182243882,-678.93,0.00018993,2]
[329212573,1718182243893,-678.93,0.00018993,2]
[329212574,1718182243905,-678.93,0.00018993,2]
[329212575,1718182243917,-679.08,0.00018993,2]
[329212576,1718182243927,-1150.3,0.00018993,2]
[329212577,1718182243938,-159.0,0.00018993,2]
[329212578,1718182243949,-134422.69280203,0.00018994,2]
[329212583,1718182247874,-500.0,0.00016438,2]
[329212584,1718182247885,-4641.10464133,0.00018875,2]
[329212585,1718182248025,-530.77617016,0.00018875,2]
[329212586,1718182248035,-944.45438169,0.00018903,2]
[329212594,1718182327613,14815.70222214,9.999e-05,2]
[329212595,1718182355560,151.01208097,0.00020332,30]
[329212596,1718182355613,151.01208097,0.00019925,120]
[329212598,1718182462207,173.811266,0.00025753,120]
[329212599,1718182474995,-238.97,0.0002408,35]
[329212600,1718182475026,-162.27,0.0002408,35]
[329212601,1718182475056,-150.5,0.0002408,35]
[329212602,1718182475088,-4706.0,0.0002408,35]
[329212603,1718182475118,-150.5,0.0002409,35]
[329212604,1718182475146,-150.5,0.0002409,35]
[329212605,1718182475177,-4706.0,0.0002409,35]
[329212606,1718182475205,-197.64,0.000241,35]
[329212607,1718182475234,-150.5,0.000241,35]
[329212608,1718182475263,-150.5,0.000241,35]
[329212609,1718182475293,-4706.0,0.000241,35]
[329212610,1718182475324,-8725.3733,0.00024909,30]
[329212611,1718182475353,-175.0,0.0002497,35]
[329212612,1718182475382,-192.0,0.0002497,35]
[329212613,1718182475409,-317.0,0.0002497,35]